fUST/lending_fUST_20250325
["ID","MTS","AMOUNT","RATE_DAILY","PERIOD"]
[356635625,1742869836184,-3997.57698747,0.00013682,2]
[356635626,1742869836193,-600.0,0.0001369,2]
[356635627,1742869836203,-418.2974228,0.00013691,2]
[356635628,1742869836212,-208.58882446,0.00013698,2]
[356635629,1742869836225,-500.0,0.00013698,2]
[356635630,1742869836234,-500.0,0.00013698,2]
[356635631,1742869836244,-500.0,0.00013698,2]
[356635632,1742869836253,-330.25527884,0.00013698,2]
[356635633,1742869836263,-500.0,0.00013698,2]
[356635634,1742869836272,-151.85313166,0.00013698,2]
[356635635,1742869836282,-500.0,0.00013698,2]
[356635636,1742869836291,-616.40239144,0.00013698,2]
[356635637,1742869836300,-500.0,0.00013698,2]
[356635638,1742869836310,-500.0,0.00013698,2]
[356635639,1742869836319,-500.0,0.00013698,2]
[356635640,1742869836332,-340.7867549,0.00013698,2]
[356635641,1742869836341,-500.0,0.00013698,2]
[356635642,1742869836351,-500.0,0.00013698,2]
[356635643,1742869836360,-500.0,0.00013698,2]
[356635644,1742869836369,-514.846404,0.00013698,2]
[356635645,1742869836379,-505.26416432,0.00013698,2]
[356635646,1742869836388,-500.0,0.00013698,2]
[356635647,1742869836397,-500.0,0.00013698,2]
[356635648,1742869836407,-554.4322484,0.00013698,2]
[356635649,1742869836416,-500.0,0.00013698,2]
[356635650,1742869836425,-510.98258938,0.00013698,2]
[356635651,1742869836434,-500.0,0.00013698,2]
[356635652,1742869836444,-500.0,0.00013698,2]
[356635653,1742869836454,-500.0,0.00013698,2]
[356635654,1742869836464,-500.0,0.00013698,2]
[356635655,1742869836474,-500.0,0.00013698,2]
[356635656,1742869836484,-500.0,0.00013698,2]
[356635657,1742869836493,-500.0,0.00013698,2]
[356635658,1742869836503,-500.0,0.00013698,2]
[356635659,1742869836512,-897.29,0.00013698,2]
[356635660,1742869836522,-500.0,0.00013698,2]
[356635661,1742869836532,-518.36473337,0.00013698,2]
[356635662,1742869836541,-500.0,0.00013698,2]
[356635663,1742869836551,-500.0,0.00013698,2]
[356635664,1742869836561,-500.0,0.00013698,2]
[356635665,1742869836571,-500.0,0.00013698,2]
[356635666,1742869836580,-500.0,0.00013698,2]
[356635667,1742869836590,-500.0,0.00013698,2]
[356635668,1742869836600,-500.0,0.00013698,2]
[356635669,1742869836610,-512.89295499,0.00013698,2]
[356635670,1742869836619,-500.0,0.00013698,2]
[356635671,1742869836629,-500.0,0.00013698,2]
[356635672,1742869836638,-507.02506869,0.00013698,2]
[356635673,1742869836648,-500.0,0.00013698,2]
[356635674,1742869836657,-507.60425529,0.00013698,2]
[356635675,1742869836667,-500.0,0.00013698,2]
[356635676,1742869836678,-511.28003144,0.00013698,2]
[356635677,1742869836687,-500.0,0.00013698,2]
[356635678,1742869836697,-585.8,0.00013698,2]
[356635679,1742869836706,-500.0,0.00013698,2]
[356635680,1742869836715,-500.0,0.00013698,2]
[356635681,1742869836725,-500.0,0.00013698,2]
[356635682,1742869836734,-500.0,0.00013698,2]
[356635683,1742869836745,-500.0,0.00013698,2]
[356635684,1742869836755,-784.33,0.00013698,2]
[356635685,1742869836764,-500.0,0.00013698,2]
[356635686,1742869836774,-500.0,0.00013698,2]
[356635687,1742869836783,-500.0,0.00013698,2]
[356635688,1742869836793,-500.0,0.00013698,2]
[356635689,1742869836802,-500.0,0.00013698,2]
[356635690,1742869836811,-500.0,0.00013698,2]
[356635691,1742869836822,-507.80863158,0.00013698,2]
[356635692,1742869836832,-500.0,0.00013698,2]
[356635693,1742869836842,-2211.58641595,0.00013698,2]
[356635694,1742869836857,-588.83358405,0.00013698,2]
[356635695,1742869836866,-500.0,0.00013698,2]
[356635696,1742869836875,-445.1214727,0.00013698,2]
[356635697,1742869836885,-500.0,0.00013698,2]
[356635698,1742869836895,-500.0,0.00013698,2]
[356635699,1742869836904,-500.0,0.00013698,2]
[356635700,1742869836914,-500.0,0.00013698,2]
[356635701,1742869836924,-500.0,0.00013698,2]
[356635702,1742869836935,-1074.16,0.00013698,2]
[356635703,1742869836944,-500.0,0.00013698,2]
[356635704,1742869836955,-500.0,0.00013698,2]
[356635705,1742869836964,-500.0,0.00013698,2]
[356635706,1742869836975,-500.0,0.00013698,2]
[356635707,1742869836985,-500.0,0.00013698,2]
[356635708,1742869836994,-500.0,0.00013698,2]
[356635709,1742869837005,-500.0,0.00013698,2]
[356635710,1742869837014,-500.0,0.00013698,2]
[356635711,1742869837024,-500.0,0.00013698,2]
[356635712,1742869837034,-500.0,0.00013698,2]
[356635713,1742869837043,-713.03,0.00013698,2]
[356635714,1742869837053,-500.0,0.00013698,2]
[356635715,1742869837063,-500.0,0.00013698,2]
[356635716,1742869837072,-500.0,0.00013698,2]
[356635717,1742869837082,-500.0,0.00013698,2]
[356635718,1742869837092,-500.0,0.00013698,2]
[356635719,1742869837102,-500.0,0.00013698,2]
[356635720,1742869837111,-500.0,0.00013698,2]
[356635721,1742869837121,-500.0,0.00013698,2]
[356635722,1742869837131,-500.0,0.00013698,2]
[356635723,1742869837141,-500.0,0.00013698,2]
[356635724,1742869837150,-500.0,0.00013698,2]
[356635725,1742869837160,-505.56009881,0.00013698,2]
[356635726,1742869837170,-500.0,0.00013698,2]
[356635727,1742869837180,-500.0,0.00013698,2]
[356635728,1742869837190,-500.0,0.00013698,2]
[356635729,1742869837199,-483.91605527,0.00013698,2]
[356635731,1742869837209,-500.0,0.00013698,2]
[356635732,1742869837219,-500.0,0.00013698,2]
[356635734,1742869837228,-500.0,0.00013698,2]
[356635737,1742869837238,-500.0,0.00013698,2]
[356635739,1742869837249,-500.0,0.00013698,2]
[356635740,1742869837259,-500.0,0.00013698,2]
[356635742,1742869837269,-500.0,0.00013698,2]
[356635744,1742869837279,-506.9583676,0.00013698,2]
[356635745,1742869837289,-502.26,0.00013698,2]
[356635746,1742869837299,-499.08090903,0.00013698,2]
[356635747,1742869837309,-500.0,0.00013698,2]
[356635748,1742869837318,-509.66904555,0.00013698,2]
[356635749,1742869837328,-505.42250756,0.00013698,2]
[356635750,1742869837338,-613.61663894,0.00013698,2]
[356635751,1742869837347,-508.26157998,0.00013698,2]
[356635752,1742869837357,-512.67717539,0.00013698,2]
[356635754,1742869837367,-500.0,0.00013698,2]
[356635756,1742869837378,-514.34135294,0.00013698,2]
[356635759,1742869837387,-500.0,0.00013698,2]
[356635761,1742869837397,-514.79799502,0.00013698,2]
[356635763,1742869837407,-500.0,0.00013698,2]
[356635764,1742869837417,-500.0,0.00013698,2]
[356635765,1742869837427,-500.0,0.00013698,2]
[356635766,1742869837436,-500.0,0.00013698,2]
[356635767,1742869837446,-794.46,0.00013698,2]
[356635768,1742869837456,-605.22,0.00013698,2]
[356635769,1742869837465,-618.91395784,0.00013698,2]
[356635770,1742869837475,-500.0,0.00013698,2]
[356635771,1742869837484,-810.32,0.00013698,2]
[356635772,1742869837494,-187.56284862,0.00013698,2]
[356635774,1742869837504,-536.99793733,0.00013698,2]
[356635775,1742869837513,-534.05,0.00013698,2]
[356635776,1742869837523,-500.0,0.00013698,2]
[356635777,1742869837532,-500.0,0.00013698,2]
[356635778,1742869837542,-500.0,0.00013698,2]
[356635779,1742869837551,-231.74843934,0.00013698,2]
[356635780,1742869837569,-500.0,0.00013698,2]
[356635781,1742869837581,-539.83,0.00013698,2]
[356635782,1742869837591,-500.0,0.00013698,2]
[356635783,1742869837601,-500.0,0.00013698,2]
[356635785,1742869837611,-500.0,0.00013698,2]
[356635786,1742869837621,-500.0,0.00013698,2]
[356635787,1742869837631,-500.0,0.00013698,2]
[356635788,1742869837641,-540.04,0.00013698,2]
[356635789,1742869837651,-582.57,0.00013698,2]
[356635791,1742869837661,-1804.07,0.00013698,2]
[356635792,1742869837671,-500.0,0.00013698,2]
[356635793,1742869837681,-181.35548682,0.00013698,2]
[356635794,1742869837690,-2046.5,0.00013698,2]
[356635795,1742869837700,-620.556362,0.00013698,2]
[356635796,1742869837710,-620.556362,0.00013698,2]
[356635797,1742869837720,-500.0,0.00013698,2]
[356635798,1742869837730,-620.556362,0.00013698,2]
[356635799,1742869837742,-620.556362,0.00013698,2]
[356635800,1742869837754,-1312.45,0.00013698,2]
[356635801,1742869837764,-500.0,0.00013698,2]
[356635802,1742869837774,-500.0,0.00013698,2]
[356635803,1742869837784,-1202.27,0.00013698,2]
[356635804,1742869837795,-2014.69,0.00013698,2]
[356635805,1742869837806,-500.0,0.00013698,2]
[356635806,1742869837816,-574.04482499,0.00013698,2]
[356635807,1742869837827,-769.86,0.00013698,2]
[356635808,1742869837838,-500.0,0.00013698,2]
[356635809,1742869837849,-500.0,0.00013698,2]
[356635810,1742869837860,-542.43,0.00013698,2]
[356635811,1742869837871,-276.7664337,0.00013698,2]
[356635812,1742869837882,-500.0,0.00013698,2]
[356635813,1742869837892,-3619.69,0.00013698,2]
[356635814,1742869837902,-500.0,0.00013698,2]
[356635815,1742869837913,-500.0,0.00013698,2]
[356635816,1742869837923,-500.0,0.00013698,2]
[356635817,1742869837934,-1535.15,0.00013698,2]
[356635818,1742869837944,-2874.98,0.00013698,2]
[356635819,1742869837955,-500.0,0.00013698,2]
[356635820,1742869837964,-500.0,0.00013698,2]
[356635821,1742869837974,-500.0,0.00013698,2]
[356635822,1742869838156,-824.91,0.00013698,2]
[356635823,1742869838166,-1631.87,0.00013698,2]
[356635824,1742869838176,-514.9,0.00013698,2]
[356635825,1742869838186,-500.0,0.00013698,2]
[356635826,1742869838195,-500.0,0.00013698,2]
[356635827,1742869838206,-244.11052548,0.00013698,2]
[356635828,1742869838216,-500.0,0.00013698,2]
[356635829,1742869838225,-500.0,0.00013698,2]
[356635830,1742869838235,-678.92,0.00013698,2]
[356635831,1742869838245,-500.0,0.00013698,2]
[356635832,1742869838255,-500.0,0.00013698,2]
[356635833,1742869838265,-500.0,0.00013698,2]
[356635834,1742869838274,-615.59,0.00013698,2]
[356635835,1742869838283,-544.31,0.00013698,2]
[356635836,1742869838294,-500.0,0.00013698,2]
[356635837,1742869838304,-937.57,0.00013698,2]
[356635838,1742869838313,-500.0,0.00013698,2]
[356635839,1742869838323,-7334.69,0.00013698,2]
[356635840,1742869838333,-500.0,0.00013698,2]
[356635841,1742869838342,-500.0,0.00013698,2]
[356635842,1742869838351,-500.0,0.00013698,2]
[356635843,1742869838360,-11213.91,0.00013698,2]
[356635844,1742869838370,-1177.01,0.00013698,2]
[356635845,1742869838379,-500.0,0.00013698,2]
[356635846,1742869838389,-500.0,0.00013698,2]
[356635847,1742869838402,-52844.87929819,0.00013698,2]
[356635848,1742869838777,-39679.97070181,0.00013698,2]
[356635849,1742869838788,-500.0,0.00013698,2]
[356635850,1742869838798,-500.0,0.00013698,2]
[356635851,1742869838808,-500.0,0.00013698,2]
[356635852,1742869838819,-500.0,0.00013698,2]
[356635853,1742869838829,-2381.16,0.00013698,2]
[356635854,1742869838839,-4043.15,0.00013698,2]
[356635855,1742869838848,-500.0,0.00013698,2]
[356635856,1742869838857,-500.0,0.00013698,2]
[356635857,1742869838866,-481.01185615,0.00013698,2]
[356635858,1742869838876,-500.0,0.00013698,2]
[356635859,1742869838886,-11303.19,0.00013698,2]
[356635860,1742869838895,-1589.46,0.00013698,2]
[356635861,1742869838904,-3223.78,0.00013698,2]
[356635862,1742869838914,-885.38,0.00013698,2]
[356635863,1742869838924,-409.81613467,0.00013698,2]
[356635864,1742869838933,-500.0,0.00013698,2]
[356635865,1742869838943,-3291.57,0.00013698,2]
[356635866,1742869838952,-1360.92,0.00013698,2]
[356635867,1742869838961,-508.25220573,0.00013698,2]
[356635868,1742869838971,-1410.3,0.00013698,2]
[356635869,1742869838980,-500.0,0.00013698,2]
[356635870,1742869838990,-500.0,0.00013698,2]
[356635871,1742869838999,-1353.0,0.00013698,2]
[356635872,1742869839008,-500.0,0.00013698,2]
[356635873,1742869839018,-2978.88,0.00013698,2]
[356635874,1742869839028,-855.55,0.00013698,2]
[356635875,1742869839037,-500.0,0.00013698,2]
[356635876,1742869839047,-585.99,0.00013698,2]
[356635877,1742869839055,-500.0,0.00013698,2]
[356635878,1742869839065,-982.09,0.00013698,2]
[356635879,1742869839074,-500.0,0.00013698,2]
[356635880,1742869839083,-3708.47,0.00013698,2]
[356635881,1742869839092,-562.67,0.00013698,2]
[356635882,1742869839102,-1856.89,0.00013698,2]
[356635883,1742869839111,-1046.32,0.00013698,2]
[356635884,1742869839120,-435.036874,0.00013698,2]
[356635885,1742869839130,-435.036874,0.00013698,2]
[356635886,1742869839139,-5781.62,0.00013698,2]
[356635887,1742869839149,-1843.58,0.00013698,2]
[356635888,1742869839158,-530.74953039,0.00013698,2]
[356635889,1742869839167,-1012.02,0.00013698,2]
[356635890,1742869839177,-500.0,0.00013698,2]
[356635891,1742869839187,-435.036874,0.00013698,2]
[356635892,1742869839196,-435.036874,0.00013698,2]
[356635894,1742869839205,-2035.87,0.00013698,2]
[356635896,1742869839215,-500.0,0.00013698,2]
[356635897,1742869839224,-1965.7,0.00013698,2]
[356635898,1742869839233,-500.0,0.00013698,2]
[356635899,1742869839243,-500.0,0.00013698,2]
[356635900,1742869839253,-5553.12,0.00013698,2]
[356635901,1742869839263,-513.06005808,0.00013698,2]
[356635902,1742869839272,-500.0,0.00013698,2]
[356635903,1742869839282,-1113.12,0.00013698,2]
[356635904,1742869839291,-500.0,0.00013698,2]
[356635905,1742869839301,-500.0,0.00013698,2]
[356635906,1742869839312,-500.0,0.00013698,2]
[356635907,1742869839321,-2891.56,0.00013698,2]
[356635908,1742869839330,-646.69138882,0.00013698,2]
[356635909,1742869839340,-500.0,0.00013698,2]
[356635910,1742869839350,-500.0,0.00013698,2]
[356635911,1742869839359,-500.0,0.00013698,2]
[356635912,1742869839369,-2371.44,0.00013698,2]
[356635913,1742869839378,-305.26459,0.00013698,2]
[356635914,1742869839387,-1029.68,0.00013698,2]
[356635915,1742869839397,-537.01520817,0.00013698,2]
[356635916,1742869839406,-513.46178816,0.00013698,2]
[356635917,1742869839416,-531.87,0.00013698,2]
[356635918,1742869839425,-500.0,0.00013698,2]
[356635919,1742869839435,-525.85303494,0.00013698,2]
[356635920,1742869839444,-500.0,0.00013698,2]
[356635921,1742869839454,-3319.3,0.00013698,2]
[356635922,1742869839464,-500.0,0.00013698,2]
[356635923,1742869839473,-500.0,0.00013698,2]
[356635924,1742869839483,-189.078054,0.00013699,2]
[356635925,1742869839492,-500.0,0.00013699,2]
[356635926,1742869839502,-500.0,0.00013699,2]
[356635927,1742869839511,-500.0,0.00013699,2]
[356635928,1742869839521,-500.0,0.00013699,2]
[356635929,1742869839530,-500.0,0.00013699,2]
[356635930,1742869839540,-500.0,0.00013699,2]
[356635931,1742869839549,-500.0,0.00013699,2]
[356635932,1742869839559,-500.0,0.00013699,2]
[356635933,1742869839568,-500.0,0.00013699,2]
[356635934,1742869839578,-500.0,0.00013699,2]
[356635935,1742869839587,-500.0,0.00013699,2]
[356635936,1742869839596,-500.0,0.00013699,2]
[356635937,1742869839605,-500.0,0.00013699,2]
[356635938,1742869839615,-500.0,0.00013699,2]
[356635939,1742869839625,-500.0,0.00013699,2]
[356635940,1742869839634,-500.0,0.00013699,2]
[356635942,1742869839644,-500.0,0.00013699,2]
[356635944,1742869839653,-500.0,0.00013699,2]
[356635946,1742869839662,-325.8517465,0.00013699,2]
[356635947,1742869839672,-500.0,0.00013699,2]
[356635948,1742869839682,-500.0,0.00013699,2]
[356635949,1742869839692,-500.0,0.00013699,2]
[356635950,1742869839702,-500.0,0.00013699,2]
[356635951,1742869839712,-500.0,0.00013699,2]
[356635952,1742869839722,-500.0,0.00013699,2]
[356635953,1742869839732,-500.0,0.00013699,2]
[356635954,1742869839743,-500.0,0.00013699,2]
[356635956,1742869839753,-500.0,0.00013699,2]
[356635958,1742869839763,-500.0,0.00013699,2]
[356635959,1742869839773,-500.0,0.00013699,2]
[356635960,1742869839783,-500.0,0.00013699,2]
[356635961,1742869839793,-500.0,0.00013699,2]
[356635962,1742869839802,-500.0,0.00013699,2]
[356635963,1742869839812,-500.0,0.00013699,2]
[356635964,1742869839822,-500.0,0.00013699,2]
[356635965,1742869839832,-500.0,0.00013699,2]
[356635966,1742869839842,-500.0,0.00013699,2]
[356635967,1742869839851,-500.0,0.00013699,2]
[356635968,1742869839861,-500.0,0.00013699,2]
[356635969,1742869839871,-500.0,0.00013699,2]
[356635970,1742869839881,-500.0,0.00013699,2]
[356635971,1742869839890,-500.0,0.00013699,2]
[356635972,1742869839900,-500.0,0.00013699,2]
[356635973,1742869839909,-500.0,0.00013699,2]
[356635974,1742869839919,-500.0,0.00013699,2]
[356635975,1742869839930,-500.0,0.00013699,2]
[356635976,1742869839940,-500.0,0.00013699,2]
[356635977,1742869839950,-500.0,0.00013699,2]
[356635978,1742869839959,-848.64781772,0.00013699,2]
[356635979,1742869839968,-848.64781772,0.00013699,2]
[356635980,1742869839977,-848.64781772,0.00013699,2]
[356635981,1742869839986,-848.64781772,0.00013699,2]
[356635982,1742869839996,-848.64781772,0.00013699,2]
[356635983,1742869840006,-848.64781772,0.00013699,2]
[356635984,1742869840015,-848.64781772,0.00013699,2]
[356635985,1742869840024,-848.64781772,0.00013699,2]
[356635986,1742869840034,-848.64781772,0.00013699,2]
[356635987,1742869840043,-848.64781772,0.00013699,2]
[356635988,1742869840052,-848.64781772,0.00013699,2]
[356635989,1742869840062,-848.64781772,0.00013699,2]
[356635991,1742869840072,-848.64781772,0.00013699,2]
[356635992,1742869840081,-848.64781772,0.00013699,2]
[356635993,1742869840091,-848.64781772,0.00013699,2]
[356635994,1742869840101,-848.64781772,0.00013699,2]
[356635995,1742869840110,-848.64781772,0.00013699,2]
[356635996,1742869840120,-848.64781772,0.00013699,2]
[356635997,1742869840129,-848.64781772,0.00013699,2]
[356635998,1742869840139,-848.64781772,0.00013699,2]
[356635999,1742869840149,-848.64781772,0.00013699,2]
[356636000,1742869840159,-848.64781772,0.00013699,2]
[356636001,1742869840168,-848.64781772,0.00013699,2]
[356636002,1742869840178,-848.64781772,0.00013699,2]
[356636003,1742869840188,-848.64781772,0.00013699,2]
[356636004,1742869840197,-848.64781772,0.00013699,2]
[356636005,1742869840207,-848.64781772,0.00013699,2]
[356636006,1742869840216,-848.64781772,0.00013699,2]
[356636007,1742869840225,-848.64781772,0.00013699,2]
[356636008,1742869840235,-848.64781772,0.00013699,2]
[356636009,1742869840244,-848.64781772,0.00013699,2]
[356636010,1742869840253,-848.64781772,0.00013699,2]
[356636011,1742869840263,-848.64781772,0.00013699,2]
[356636012,1742869840273,-848.64781772,0.00013699,2]
[356636013,1742869840283,-848.64781772,0.00013699,2]
[356636014,1742869840292,-848.64781772,0.00013699,2]
[356636015,1742869840302,-848.64781772,0.00013699,2]
[356636016,1742869840311,-872.22136822,0.00013699,2]
[356636017,1742869840320,-872.22136822,0.00013699,2]
[356636018,1742869840330,-872.22136822,0.00013699,2]
[356636019,1742869840340,-872.22136822,0.00013699,2]
[356636020,1742869840350,-872.22136822,0.00013699,2]
[356636021,1742869840359,-872.22136822,0.00013699,2]
[356636022,1742869840370,-620.556362,0.00013699,2]
[356636023,1742869840379,-620.556362,0.00013699,2]
[356636024,1742869840389,-435.036874,0.00013699,2]
[356636025,1742869840399,-435.036874,0.00013699,2]
[356636026,1742869840409,-420.08,0.000137,2]
[356636027,1742869840418,-622.2,0.00013745,2]
[356636028,1742869840428,-250.0,0.00013783,2]
[356636029,1742869840438,-155.697,0.00013783,2]
[356636030,1742869840447,-295.974,0.00013783,2]
[356636031,1742869840457,-182.533,0.00013783,2]
[356636032,1742869840467,-196.201,0.00013783,2]
[356636033,1742869840477,-150.778,0.00013783,2]
[356636034,1742869840486,-541.0,0.00013783,2]
[356636035,1742869840496,-645.2214,0.000138,2]
[356636036,1742869840506,-243.20450187,0.00013832,2]
[356636037,1742869840515,-728.12361881,0.00013855,2]
[356636038,1742869840525,-13261.62949701,0.000139,2]
[356636039,1742869840534,-151.0,0.000139,2]
[356636040,1742869840668,-151.0,0.000139,2]
[356636041,1742869840680,-151.0,0.000139,2]
[356636042,1742869840690,-151.0,0.000139,2]
[356636043,1742869840699,-151.0,0.000139,2]
[356636044,1742869840708,-151.0,0.000139,2]
[356636045,1742869840718,-151.0,0.000139,2]
[356636046,1742869840728,-500.0,0.00013972,2]
[356636047,1742869840737,-535.05459958,0.00013972,2]
[356636048,1742869840751,-500.0,0.00013972,2]
[356636049,1742869840760,-500.0,0.00013972,2]
[356636050,1742869840770,-500.0,0.00013972,2]
[356636051,1742869840780,-539.02067308,0.00013972,2]
[356636052,1742869840791,-500.0,0.00013972,2]
[356636053,1742869840800,-500.0,0.00013972,2]
[356636054,1742869840810,-500.0,0.00013972,2]
[356636055,1742869840820,-352.27432484,0.00013972,2]
[356636056,1742869840830,-500.0,0.00013972,2]
[356636057,1742869840839,-500.0,0.00013972,2]
[356636058,1742869840849,-500.0,0.00013972,2]
[356636059,1742869840859,-500.0,0.00013972,2]
[356636060,1742869840868,-534.73618433,0.00013972,2]
[356636061,1742869840877,-500.0,0.00013972,2]
[356636062,1742869840887,-500.0,0.00013972,2]
[356636063,1742869840897,-500.0,0.00013972,2]
[356636064,1742869840906,-500.0,0.00013972,2]
[356636065,1742869840915,-897.29,0.00013972,2]
[356636066,1742869840925,-500.0,0.00013972,2]
[356636067,1742869840934,-500.0,0.00013972,2]
[356636068,1742869840943,-500.0,0.00013972,2]
[356636069,1742869840952,-500.0,0.00013972,2]
[356636070,1742869840962,-500.0,0.00013972,2]
[356636071,1742869840971,-500.0,0.00013972,2]
[356636072,1742869840981,-500.0,0.00013972,2]
[356636073,1742869840991,-500.0,0.00013972,2]
[356636074,1742869841002,-500.0,0.00013972,2]
[356636075,1742869841012,-264.94146465,0.00013972,2]
[356636076,1742869841022,-585.8,0.00013972,2]
[356636077,1742869841032,-500.0,0.00013972,2]
[356636078,1742869841042,-500.0,0.00013972,2]
[356636079,1742869841051,-500.0,0.00013972,2]
[356636080,1742869841062,-500.0,0.00013972,2]
[356636081,1742869841071,-784.33,0.00013972,2]
[356636082,1742869841080,-500.0,0.00013972,2]
[356636083,1742869841090,-500.0,0.00013972,2]
[356636084,1742869841100,-500.0,0.00013972,2]
[356636085,1742869841109,-500.0,0.00013972,2]
[356636086,1742869841119,-500.0,0.00013972,2]
[356636087,1742869841128,-500.0,0.00013972,2]
[356636088,1742869841138,-500.0,0.00013972,2]
[356636089,1742869841147,-2800.42,0.00013972,2]
[356636090,1742869841157,-500.0,0.00013972,2]
[356636091,1742869841166,-500.0,0.00013972,2]
[356636092,1742869841176,-500.0,0.00013972,2]
[356636093,1742869841186,-500.0,0.00013972,2]
[356636094,1742869841195,-500.0,0.00013972,2]
[356636095,1742869841205,-1074.16,0.00013972,2]
[356636096,1742869841214,-500.0,0.00013972,2]
[356636097,1742869841224,-500.0,0.00013972,2]
[356636098,1742869841233,-500.0,0.00013972,2]
[356636099,1742869841243,-500.0,0.00013972,2]
[356636100,1742869841252,-500.0,0.00013972,2]
[356636101,1742869841261,-500.0,0.00013972,2]
[356636102,1742869841271,-500.0,0.00013972,2]
[356636103,1742869841280,-500.0,0.00013972,2]
[356636104,1742869841289,-500.0,0.00013972,2]
[356636105,1742869841298,-500.0,0.00013972,2]
[356636106,1742869841308,-713.03,0.00013972,2]
[356636107,1742869841317,-500.0,0.00013972,2]
[356636108,1742869841327,-500.0,0.00013972,2]
[356636109,1742869841336,-500.0,0.00013972,2]
[356636110,1742869841345,-500.0,0.00013972,2]
[356636111,1742869841355,-500.0,0.00013972,2]
[356636112,1742869841364,-500.0,0.00013972,2]
[356636113,1742869841374,-500.0,0.00013972,2]
[356636114,1742869841383,-500.0,0.00013972,2]
[356636115,1742869841392,-500.0,0.00013972,2]
[356636116,1742869841402,-500.0,0.00013972,2]
[356636117,1742869841411,-500.0,0.00013972,2]
[356636118,1742869841421,-500.0,0.00013972,2]
[356636119,1742869841431,-500.0,0.00013972,2]
[356636120,1742869841440,-500.0,0.00013972,2]
[356636121,1742869841450,-500.0,0.00013972,2]
[356636122,1742869841460,-500.0,0.00013972,2]
[356636123,1742869841469,-500.0,0.00013972,2]
[356636124,1742869841479,-500.0,0.00013972,2]
[356636125,1742869841488,-550.66130841,0.00013972,2]
[356636126,1742869841498,-500.0,0.00013972,2]
[356636127,1742869841507,-500.0,0.00013972,2]
[356636128,1742869841517,-500.0,0.00013972,2]
[356636129,1742869841526,-500.0,0.00013972,2]
[356636130,1742869841537,-500.0,0.00013972,2]
[356636131,1742869841547,-546.56936333,0.00013972,2]
[356636132,1742869841556,-500.0,0.00013972,2]
[356636133,1742869841566,-794.46,0.00013972,2]
[356636134,1742869841576,-605.22,0.00013972,2]
[356636135,1742869841586,-507.86010793,0.00013972,2]
[356636136,1742869841596,-810.32,0.00013972,2]
[356636137,1742869841606,-534.05,0.00013972,2]
[356636138,1742869841615,-505.84564429,0.00013972,2]
[356636139,1742869841625,-602.24,0.00013972,2]
[356636140,1742869841635,-500.0,0.00013972,2]
[356636141,1742869841644,-500.0,0.00013972,2]
[356636142,1742869841653,-539.83,0.00013972,2]
[356636143,1742869841663,-500.0,0.00013972,2]
[356636144,1742869841673,-512.46571224,0.00013972,2]
[356636145,1742869841683,-511.68739459,0.00013972,2]
[356636146,1742869841692,-500.0,0.00013972,2]
[356636147,1742869841702,-500.0,0.00013972,2]
[356636148,1742869841712,-540.04,0.00013972,2]